[Event "Titled Tuesday Blitz January 11 2022"]
[White "Girya, Olga"]
[Black "Gabrielian, Artur"]
[WhiteFideId "4195752"]
[BlackFideId "4131002"]
[WhiteElo "2275"]
[BlackElo "2440"]
[Result "1-0"]
[Round "11"]
[TimeControl "180+1"]
[Date "2022.01.11"]
[WhiteClock "0:00:05"]
[BlackClock "0:00:02"]

1. d4 {[%clk 0:03:00]}  Nf6 {[%clk 0:02:59]} 2. Nf3 {[%clk 0:02:59]}  e6 {[%clk 0:02:58]} 3. c4 {[%clk 0:02:58]}  c5 {[%clk 0:02:58]} 4. d5 {[%clk 0:02:55]}  exd5 {[%clk 0:02:58]} 5. cxd5 {[%clk 0:02:55]}  d6 {[%clk 0:02:59]} 6. Nc3 {[%clk 0:02:55]}  g6 {[%clk 0:02:59]} 7. h3 {[%clk 0:02:55]}  Bg7 {[%clk 0:02:59]} 8. e4 {[%clk 0:02:55]}  O-O {[%clk 0:02:59]} 9. Be3 {[%clk 0:02:54]}  Na6 {[%clk 0:02:51]} 10. Bxa6 {[%clk 0:02:52]}  bxa6 {[%clk 0:02:51]} 11. O-O {[%clk 0:02:52]}  a5 {[%clk 0:02:49]} 12. Re1 {[%clk 0:02:49]}  Ba6 {[%clk 0:02:47]} 13. e5 {[%clk 0:02:46]}  dxe5 {[%clk 0:02:46]} 14. Nxe5 {[%clk 0:02:42]}  Bb7 {[%clk 0:02:16]} 15. Bxc5 {[%clk 0:02:33]}  Re8 {[%clk 0:02:16]} 16. Nc6 {[%clk 0:02:16]}  Rxe1+ {[%clk 0:02:14]} 17. Qxe1 {[%clk 0:02:15]}  Bxc6 {[%clk 0:02:13]} 18. dxc6 {[%clk 0:02:15]}  Qc7 {[%clk 0:02:09]} 19. Rd1 {[%clk 0:01:51]}  Qxc6 {[%clk 0:01:58]} 20. Bd4 {[%clk 0:01:50]}  a4 {[%clk 0:01:45]} 21. Bxf6 {[%clk 0:01:40]}  Qxf6 {[%clk 0:01:35]} 22. Nxa4 {[%clk 0:01:39]}  Rd8 {[%clk 0:01:20]} 23. Rxd8+ {[%clk 0:01:31]}  Qxd8 {[%clk 0:01:20]} 24. g3 {[%clk 0:01:24]}  Qd7 {[%clk 0:01:14]} 25. Qe4 {[%clk 0:01:20]}  Qxh3 {[%clk 0:00:59]} 26. Qa8+ {[%clk 0:01:07]}  Bf8 {[%clk 0:00:58]} 27. Qxa7 {[%clk 0:01:06]}  Qf5 {[%clk 0:00:54]} 28. Nc3 {[%clk 0:01:04]}  Bc5 {[%clk 0:00:49]} 29. Qb8+ {[%clk 0:00:57]}  Kg7 {[%clk 0:00:48]} 30. Qf4 {[%clk 0:00:55]}  Qe6 {[%clk 0:00:26]} 31. Ne4 {[%clk 0:00:53]}  Bd4 {[%clk 0:00:20]} 32. b3 {[%clk 0:00:53]}  h6 {[%clk 0:00:17]} 33. Kg2 {[%clk 0:00:51]}  Qd5 {[%clk 0:00:16]} 34. Qf3 {[%clk 0:00:51]}  Qe5 {[%clk 0:00:16]} 35. Nd2 {[%clk 0:00:48]}  Bc5 {[%clk 0:00:11]} 36. Ne4 {[%clk 0:00:43]}  Bd4 {[%clk 0:00:11]} 37. a4 {[%clk 0:00:43]}  h5 {[%clk 0:00:11]} 38. Nd2 {[%clk 0:00:40]}  Bc5 {[%clk 0:00:07]} 39. a5 {[%clk 0:00:38]}  Bb4 {[%clk 0:00:07]} 40. Nc4 {[%clk 0:00:36]}  Qd4 {[%clk 0:00:06]} 41. a6 {[%clk 0:00:30]}  Bc5 {[%clk 0:00:06]} 42. Na5 {[%clk 0:00:23]}  Bb6 {[%clk 0:00:05]} 43. Nc6 {[%clk 0:00:23]}  Qc5 {[%clk 0:00:04]} 44. b4 {[%clk 0:00:19]}  Qc2 {[%clk 0:00:04]} 45. a7 {[%clk 0:00:19]}  Qa2 {[%clk 0:00:04]} 46. b5 {[%clk 0:00:07]}  Qa1 {[%clk 0:00:04]} 47. Qf4 {[%clk 0:00:05]}  Qa2 {[%clk 0:00:03]} 48. Qe5+ {[%clk 0:00:05]}  Kh7 {[%clk 0:00:03]} 49. Qf6 {[%clk 0:00:06]}  Qd5+ {[%clk 0:00:03]} 50. Qf3 {[%clk 0:00:06]}  Qa2 {[%clk 0:00:03]} 51. Ne5 {[%clk 0:00:06]}  f5 {[%clk 0:00:02]} 52. a8=Q {[%clk 0:00:05]} 1-0


[Site "https://www.chess.com"]

[Event "Titled Tuesday Blitz January 11 2022"]
[White "Hakobyan, Aram"]
[Black "Svane, Rasmus"]
[WhiteFideId "13306677"]
[BlackFideId "4657101"]
[WhiteElo "2557"]
[BlackElo "2645"]
[Result "1/2-1/2"]
[Round "11"]
[TimeControl "180+1"]
[Date "2022.01.11"]
[WhiteClock "0:00:06"]
[BlackClock "0:00:06"]

1. e4 {[%clk 0:03:00]}  e5 {[%clk 0:03:00]} 2. Nf3 {[%clk 0:03:01]}  Nc6 {[%clk 0:03:01]} 3. Bb5 {[%clk 0:03:01]}  a6 {[%clk 0:03:01]} 4. Ba4 {[%clk 0:03:01]}  Nf6 {[%clk 0:03:01]} 5. O-O {[%clk 0:03:02]}  Be7 {[%clk 0:03:02]} 6. Re1 {[%clk 0:03:02]}  b5 {[%clk 0:03:01]} 7. Bb3 {[%clk 0:03:02]}  O-O {[%clk 0:03:02]} 8. c3 {[%clk 0:03:03]}  d5 {[%clk 0:03:01]} 9. exd5 {[%clk 0:03:00]}  Nxd5 {[%clk 0:03:02]} 10. Nxe5 {[%clk 0:03:01]}  Nxe5 {[%clk 0:03:03]} 11. Rxe5 {[%clk 0:03:01]}  c6 {[%clk 0:03:03]} 12. d3 {[%clk 0:03:00]}  Bd6 {[%clk 0:02:59]} 13. Re1 {[%clk 0:02:59]}  Qh4 {[%clk 0:02:55]} 14. g3 {[%clk 0:02:59]}  Qh3 {[%clk 0:02:56]} 15. Qf3 {[%clk 0:02:55]}  Bg4 {[%clk 0:02:50]} 16. Qg2 {[%clk 0:02:52]}  Qh5 {[%clk 0:02:48]} 17. Be3 {[%clk 0:02:32]}  Rae8 {[%clk 0:02:10]} 18. Nd2 {[%clk 0:02:31]}  Re6 {[%clk 0:02:09]} 19. Bxd5 {[%clk 0:02:25]}  cxd5 {[%clk 0:02:06]} 20. f3 {[%clk 0:02:21]}  Bh3 {[%clk 0:02:04]} 21. Qf2 {[%clk 0:02:22]}  Qf5 {[%clk 0:02:00]} 22. Nb3 {[%clk 0:02:11]}  Qxd3 {[%clk 0:01:19]} 23. Rad1 {[%clk 0:02:10]}  Qc4 {[%clk 0:01:19]} 24. Bc5 {[%clk 0:02:02]}  Bxc5 {[%clk 0:01:06]} 25. Qxc5 {[%clk 0:01:53]}  Qa4 {[%clk 0:00:51]} 26. Nd4 {[%clk 0:00:49]}  Rxe1+ {[%clk 0:00:48]} 27. Rxe1 {[%clk 0:00:50]}  Qxa2 {[%clk 0:00:42]} 28. Qb4 {[%clk 0:00:46]}  Qc4 {[%clk 0:00:40]} 29. Qxc4 {[%clk 0:00:46]}  bxc4 {[%clk 0:00:35]} 30. g4 {[%clk 0:00:47]}  f5 {[%clk 0:00:29]} 31. Nxf5 {[%clk 0:00:45]}  h5 {[%clk 0:00:24]} 32. Re7 {[%clk 0:00:16]}  hxg4 {[%clk 0:00:19]} 33. fxg4 {[%clk 0:00:17]}  Bxg4 {[%clk 0:00:19]} 34. Rxg7+ {[%clk 0:00:17]}  Kh8 {[%clk 0:00:19]} 35. Rxg4 {[%clk 0:00:18]}  Rxf5 {[%clk 0:00:20]} 36. Kg2 {[%clk 0:00:16]}  Kh7 {[%clk 0:00:16]} 37. Kg3 {[%clk 0:00:13]}  Kh6 {[%clk 0:00:10]} 38. Rf4 {[%clk 0:00:13]}  Re5 {[%clk 0:00:09]} 39. Rf6+ {[%clk 0:00:12]}  Kg5 {[%clk 0:00:10]} 40. Rxa6 {[%clk 0:00:11]}  Re3+ {[%clk 0:00:07]} 41. Kf2 {[%clk 0:00:10]}  Rh3 {[%clk 0:00:07]} 42. Rd6 {[%clk 0:00:07]}  Kf4 {[%clk 0:00:06]} 43. Rxd5 {[%clk 0:00:07]}  Rxh2+ {[%clk 0:00:07]} 44. Kg1 {[%clk 0:00:06]}  Rxb2 {[%clk 0:00:07]} 45. Rd4+ {[%clk 0:00:07]}  Kg3 {[%clk 0:00:07]} 46. Kf1 {[%clk 0:00:07]}  Kf3 {[%clk 0:00:08]} 47. Kg1 {[%clk 0:00:06]}  Kg3 {[%clk 0:00:06]} 48. Kf1 {[%clk 0:00:06]}  Kf3 {[%clk 0:00:06]} 49. Kg1 {[%clk 0:00:06]}  Kg3 {[%clk 0:00:06]} 1/2-1/2


[Site "https://www.chess.com"]

[Event "Titled Tuesday Blitz January 11 2022"]
[White "Kobalia, Mikhail"]
[Black "Papasimakopoulos, Alexandros"]
[WhiteFideId "4119150"]
[BlackFideId "4244125"]
[WhiteElo "2667"]
[BlackElo "2340"]
[Result "1-0"]
[Round "11"]
[TimeControl "180+1"]
[Date "2022.01.11"]
[WhiteClock "0:00:24"]
[BlackClock "0:00:15"]

1. e4 {[%clk 0:02:59]}  e6 {[%clk 0:02:59]} 2. d3 {[%clk 0:02:59]}  d5 {[%clk 0:02:59]} 3. Nd2 {[%clk 0:02:59]}  c5 {[%clk 0:02:59]} 4. Ngf3 {[%clk 0:02:59]}  Nc6 {[%clk 0:03:00]} 5. g3 {[%clk 0:02:59]}  Nge7 {[%clk 0:03:00]} 6. Bg2 {[%clk 0:03:00]}  g6 {[%clk 0:03:01]} 7. O-O {[%clk 0:03:00]}  Bg7 {[%clk 0:03:01]} 8. Re1 {[%clk 0:03:00]}  a5 {[%clk 0:02:57]} 9. a4 {[%clk 0:03:00]}  b6 {[%clk 0:02:58]} 10. exd5 {[%clk 0:02:47]}  exd5 {[%clk 0:02:57]} 11. c3 {[%clk 0:02:45]}  O-O {[%clk 0:02:58]} 12. Nb1 {[%clk 0:02:43]}  d4 {[%clk 0:02:51]} 13. cxd4 {[%clk 0:02:35]}  cxd4 {[%clk 0:02:47]} 14. Bg5 {[%clk 0:02:33]}  f6 {[%clk 0:02:44]} 15. Bd2 {[%clk 0:02:29]}  Ra7 {[%clk 0:02:37]} 16. Na3 {[%clk 0:02:26]}  Nd5 {[%clk 0:02:34]} 17. Qb3 {[%clk 0:02:25]}  Kh8 {[%clk 0:02:32]} 18. Rac1 {[%clk 0:02:08]}  Ndb4 {[%clk 0:02:23]} 19. Nb5 {[%clk 0:02:04]}  Re7 {[%clk 0:02:10]} 20. Rxe7 {[%clk 0:01:52]}  Qxe7 {[%clk 0:02:11]} 21. Nfxd4 {[%clk 0:01:50]}  Nxd4 {[%clk 0:02:08]} 22. Nxd4 {[%clk 0:01:50]}  f5 {[%clk 0:02:07]} 23. Nc6 {[%clk 0:01:46]}  Nxc6 {[%clk 0:02:02]} 24. Bxc6 {[%clk 0:01:45]}  Bd4 {[%clk 0:01:32]} 25. Bc3 {[%clk 0:01:44]}  Qe5 {[%clk 0:01:31]} 26. Qxb6 {[%clk 0:01:38]}  Bxc3 {[%clk 0:01:27]} 27. bxc3 {[%clk 0:01:37]}  Be6 {[%clk 0:01:25]} 28. Qe3 {[%clk 0:01:33]}  Qd6 {[%clk 0:01:21]} 29. Bb5 {[%clk 0:01:26]}  f4 {[%clk 0:01:22]} 30. Qe4 {[%clk 0:01:14]}  fxg3 {[%clk 0:01:19]} 31. hxg3 {[%clk 0:01:13]}  Bf5 {[%clk 0:01:19]} 32. Qe3 {[%clk 0:01:06]}  Bc8 {[%clk 0:01:12]} 33. Re1 {[%clk 0:01:00]}  Bf5 {[%clk 0:00:51]} 34. Qe5+ {[%clk 0:00:59]}  Qxe5 {[%clk 0:00:51]} 35. Rxe5 {[%clk 0:00:58]}  Rc8 {[%clk 0:00:50]} 36. Bc4 {[%clk 0:00:57]}  Ra8 {[%clk 0:00:49]} 37. d4 {[%clk 0:00:56]}  Rc8 {[%clk 0:00:49]} 38. Rc5 {[%clk 0:00:54]}  Rxc5 {[%clk 0:00:49]} 39. dxc5 {[%clk 0:00:54]}  Kg7 {[%clk 0:00:50]} 40. c6 {[%clk 0:00:46]}  Bc8 {[%clk 0:00:49]} 41. Kg2 {[%clk 0:00:38]}  Kf6 {[%clk 0:00:49]} 42. f4 {[%clk 0:00:38]}  Ke7 {[%clk 0:00:48]} 43. Kf3 {[%clk 0:00:37]}  Kd6 {[%clk 0:00:48]} 44. Bb5 {[%clk 0:00:38]}  Bf5 {[%clk 0:00:48]} 45. g4 {[%clk 0:00:35]}  Be6 {[%clk 0:00:47]} 46. g5 {[%clk 0:00:35]}  Bd5+ {[%clk 0:00:47]} 47. Ke3 {[%clk 0:00:34]}  Be6 {[%clk 0:00:17]} 48. Kd4 {[%clk 0:00:34]}  Bf5 {[%clk 0:00:17]} 49. c4 {[%clk 0:00:33]}  Bg4 {[%clk 0:00:14]} 50. c5+ {[%clk 0:00:33]}  Kc7 {[%clk 0:00:14]} 51. Ke5 {[%clk 0:00:34]}  Bf5 {[%clk 0:00:14]} 52. Kf6 {[%clk 0:00:34]}  Bc2 {[%clk 0:00:15]} 53. Kg7 {[%clk 0:00:33]}  Bb1 {[%clk 0:00:15]} 54. Kxh7 {[%clk 0:00:34]}  Bc2 {[%clk 0:00:16]} 55. Kg7 {[%clk 0:00:34]}  Bb1 {[%clk 0:00:16]} 56. Kf6 {[%clk 0:00:34]}  Bc2 {[%clk 0:00:17]} 57. Bc4 {[%clk 0:00:25]}  Kxc6 {[%clk 0:00:17]} 58. Bf7 {[%clk 0:00:25]}  Kxc5 {[%clk 0:00:17]} 59. Bxg6 {[%clk 0:00:25]}  Bxa4 {[%clk 0:00:17]} 60. Bf7 {[%clk 0:00:24]}  Bc2 {[%clk 0:00:16]} 61. f5 {[%clk 0:00:24]}  a4 {[%clk 0:00:14]} 62. g6 {[%clk 0:00:24]}  Bxf5 {[%clk 0:00:15]} 63. Kxf5 {[%clk 0:00:24]} 1-0


[Site "https://www.chess.com"]

[Event "Titled Tuesday Blitz January 11 2022"]
[White "Krivonosov, Oleg"]
[Black "Martinez Ramirez, Lennis"]
[WhiteFideId "11600349"]
[BlackFideId "3509079"]
[WhiteElo "2455"]
[BlackElo "2374"]
[Result "1/2-1/2"]
[Round "11"]
[TimeControl "180+1"]
[Date "2022.01.11"]
[WhiteClock "0:00:02"]
[BlackClock "0:00:09"]

1. Nf3 {[%clk 0:03:00]}  d5 {[%clk 0:02:59]} 2. d4 {[%clk 0:03:00]}  Nc6 {[%clk 0:03:00]} 3. Bf4 {[%clk 0:02:59]}  Bg4 {[%clk 0:02:58]} 4. e3 {[%clk 0:02:58]}  e6 {[%clk 0:02:57]} 5. c4 {[%clk 0:02:57]}  Bd6 {[%clk 0:02:57]} 6. Bg3 {[%clk 0:02:55]}  Nge7 {[%clk 0:02:55]} 7. Nc3 {[%clk 0:02:55]}  a6 {[%clk 0:02:52]} 8. Rc1 {[%clk 0:02:53]}  O-O {[%clk 0:02:50]} 9. cxd5 {[%clk 0:02:47]}  exd5 {[%clk 0:02:43]} 10. Be2 {[%clk 0:02:47]}  Bxg3 {[%clk 0:02:42]} 11. hxg3 {[%clk 0:02:46]}  h6 {[%clk 0:02:39]} 12. O-O {[%clk 0:02:44]}  Qd6 {[%clk 0:02:32]} 13. Na4 {[%clk 0:02:40]}  Bxf3 {[%clk 0:02:24]} 14. Bxf3 {[%clk 0:02:33]}  b6 {[%clk 0:02:24]} 15. a3 {[%clk 0:02:24]}  Rfc8 {[%clk 0:02:24]} 16. Qb3 {[%clk 0:02:16]}  b5 {[%clk 0:02:14]} 17. Nc5 {[%clk 0:02:10]}  Na5 {[%clk 0:02:11]} 18. Qc3 {[%clk 0:02:09]}  Nc4 {[%clk 0:02:10]} 19. b3 {[%clk 0:02:05]}  Nb6 {[%clk 0:02:07]} 20. a4 {[%clk 0:01:54]}  Nd7 {[%clk 0:02:03]} 21. Bg4 {[%clk 0:01:41]}  f5 {[%clk 0:02:02]} 22. Bf3 {[%clk 0:01:40]}  Nxc5 {[%clk 0:02:01]} 23. Qxc5 {[%clk 0:01:39]}  Qxc5 {[%clk 0:02:00]} 24. Rxc5 {[%clk 0:01:40]}  c6 {[%clk 0:01:52]} 25. Ra1 {[%clk 0:01:36]}  Kf8 {[%clk 0:01:51]} 26. Rc2 {[%clk 0:01:35]}  bxa4 {[%clk 0:01:46]} 27. Rxa4 {[%clk 0:01:34]}  Rcb8 {[%clk 0:01:46]} 28. Rc3 {[%clk 0:01:29]}  Rb6 {[%clk 0:01:45]} 29. g4 {[%clk 0:01:28]}  a5 {[%clk 0:01:40]} 30. gxf5 {[%clk 0:01:24]}  Nxf5 {[%clk 0:01:41]} 31. Bd1 {[%clk 0:01:19]}  Ke7 {[%clk 0:01:37]} 32. Rc5 {[%clk 0:01:16]}  Rb5 {[%clk 0:01:29]} 33. Rc1 {[%clk 0:01:12]}  Kd6 {[%clk 0:01:24]} 34. Rca1 {[%clk 0:01:11]}  Ne7 {[%clk 0:01:13]} 35. b4 {[%clk 0:01:08]}  Nc8 {[%clk 0:01:04]} 36. bxa5 {[%clk 0:01:05]}  Na7 {[%clk 0:01:04]} 37. a6 {[%clk 0:00:57]}  Rab8 {[%clk 0:01:03]} 38. Be2 {[%clk 0:00:55]}  Rb2 {[%clk 0:01:03]} 39. R4a2 {[%clk 0:00:55]}  R2b6 {[%clk 0:01:01]} 40. g3 {[%clk 0:00:54]}  Rb4 {[%clk 0:00:51]} 41. Kg2 {[%clk 0:00:53]}  R4b6 {[%clk 0:00:51]} 42. Rh1 {[%clk 0:00:44]}  Rf8 {[%clk 0:00:50]} 43. Rh4 {[%clk 0:00:42]}  Rf7 {[%clk 0:00:44]} 44. Rf4 {[%clk 0:00:42]}  Rc7 {[%clk 0:00:44]} 45. Rf8 {[%clk 0:00:40]}  Ke7 {[%clk 0:00:43]} 46. Ra8 {[%clk 0:00:38]}  Kd6 {[%clk 0:00:41]} 47. g4 {[%clk 0:00:33]}  Rf7 {[%clk 0:00:40]} 48. Kg3 {[%clk 0:00:32]}  Ke6 {[%clk 0:00:39]} 49. Bd3 {[%clk 0:00:30]}  Kd6 {[%clk 0:00:37]} 50. Bf5 {[%clk 0:00:30]}  c5 {[%clk 0:00:33]} 51. dxc5+ {[%clk 0:00:27]}  Kxc5 {[%clk 0:00:34]} 52. Rc2+ {[%clk 0:00:23]}  Kb5 {[%clk 0:00:34]} 53. Bd3+ {[%clk 0:00:21]}  Kb4 {[%clk 0:00:32]} 54. Rb2+ {[%clk 0:00:20]}  Ka5 {[%clk 0:00:32]} 55. Rxb6 {[%clk 0:00:20]}  Kxb6 {[%clk 0:00:32]} 56. Rb8+ {[%clk 0:00:19]}  Kc6 {[%clk 0:00:31]} 57. Rg8 {[%clk 0:00:18]}  Re7 {[%clk 0:00:31]} 58. Kf3 {[%clk 0:00:17]}  Rf7+ {[%clk 0:00:28]} 59. Ke2 {[%clk 0:00:16]}  Kc5 {[%clk 0:00:27]} 60. Rb8 {[%clk 0:00:15]}  Nc6 {[%clk 0:00:27]} 61. Rb7 {[%clk 0:00:14]}  Rxb7 {[%clk 0:00:27]} 62. axb7 {[%clk 0:00:13]}  Kb6 {[%clk 0:00:27]} 63. Kf3 {[%clk 0:00:11]}  Ne5+ {[%clk 0:00:24]} 64. Ke2 {[%clk 0:00:10]}  Kxb7 {[%clk 0:00:24]} 65. Bf5 {[%clk 0:00:10]}  Kc6 {[%clk 0:00:23]} 66. f4 {[%clk 0:00:10]}  Nc4 {[%clk 0:00:22]} 67. Bd3 {[%clk 0:00:10]}  Nd6 {[%clk 0:00:22]} 68. Kf3 {[%clk 0:00:10]}  Kc5 {[%clk 0:00:21]} 69. Ke2 {[%clk 0:00:07]}  g5 {[%clk 0:00:20]} 70. Kf3 {[%clk 0:00:05]}  d4 {[%clk 0:00:19]} 71. exd4+ {[%clk 0:00:05]}  Kxd4 {[%clk 0:00:20]} 72. Bf5 {[%clk 0:00:05]}  Nc4 {[%clk 0:00:19]} 73. Be6 {[%clk 0:00:04]}  Nd6 {[%clk 0:00:16]} 74. f5 {[%clk 0:00:03]}  Ne8 {[%clk 0:00:17]} 75. Bf7 {[%clk 0:00:02]}  Nf6 {[%clk 0:00:18]} 76. Bh5 {[%clk 0:00:02]}  Nxh5 {[%clk 0:00:11]} 77. gxh5 {[%clk 0:00:02]}  Ke5 {[%clk 0:00:12]} 78. Kg4 {[%clk 0:00:01]}  Kf6 {[%clk 0:00:12]} 79. Kf3 {[%clk 0:00:01]}  Kxf5 {[%clk 0:00:13]} 80. Kg3 {[%clk 0:00:02]}  g4 {[%clk 0:00:13]} 81. Kh4 {[%clk 0:00:02]}  Kf4 {[%clk 0:00:09]} 1/2-1/2


[Site "https://www.chess.com"]

[Event "Titled Tuesday Blitz January 11 2022"]
[White "Narayanan.S.L"]
[Black "Lysyj, Igor"]
[WhiteFideId "5058422"]
[BlackFideId "4150120"]
[WhiteElo "2494"]
[BlackElo "2611"]
[Result "1/2-1/2"]
[Round "11"]
[TimeControl "180+1"]
[Date "2022.01.11"]
[WhiteClock "0:00:21"]
[BlackClock "0:00:07"]

1. c4 {[%clk 0:02:59]}  e6 {[%clk 0:02:59]} 2. Nf3 {[%clk 0:02:59]}  Nf6 {[%clk 0:02:58]} 3. g3 {[%clk 0:02:59]}  d5 {[%clk 0:02:57]} 4. Bg2 {[%clk 0:03:00]}  Be7 {[%clk 0:02:58]} 5. O-O {[%clk 0:03:00]}  O-O {[%clk 0:02:57]} 6. Ne5 {[%clk 0:03:00]}  c5 {[%clk 0:02:54]} 7. b3 {[%clk 0:02:56]}  Qc7 {[%clk 0:02:51]} 8. Bb2 {[%clk 0:02:56]}  d4 {[%clk 0:02:49]} 9. f4 {[%clk 0:02:55]}  Nbd7 {[%clk 0:02:46]} 10. Nxd7 {[%clk 0:02:48]}  Bxd7 {[%clk 0:02:44]} 11. e4 {[%clk 0:02:48]}  dxe3 {[%clk 0:02:40]} 12. dxe3 {[%clk 0:02:48]}  Bc6 {[%clk 0:02:41]} 13. Nc3 {[%clk 0:02:47]}  Rad8 {[%clk 0:02:28]} 14. Qe2 {[%clk 0:02:47]}  a6 {[%clk 0:02:22]} 15. Rfd1 {[%clk 0:02:46]}  Rxd1+ {[%clk 0:02:14]} 16. Rxd1 {[%clk 0:02:45]}  Rd8 {[%clk 0:02:14]} 17. e4 {[%clk 0:02:44]}  Rxd1+ {[%clk 0:02:11]} 18. Nxd1 {[%clk 0:02:44]}  Nd7 {[%clk 0:02:08]} 19. e5 {[%clk 0:02:43]}  Bxg2 {[%clk 0:01:57]} 20. Qxg2 {[%clk 0:02:44]}  Nb8 {[%clk 0:01:56]} 21. Qd2 {[%clk 0:02:40]}  Nc6 {[%clk 0:01:56]} 22. Nf2 {[%clk 0:02:41]}  Qd8 {[%clk 0:01:46]} 23. Qxd8+ {[%clk 0:02:40]}  Bxd8 {[%clk 0:01:47]} 24. Ne4 {[%clk 0:02:40]}  Be7 {[%clk 0:01:46]} 25. Bc3 {[%clk 0:02:38]}  h5 {[%clk 0:01:44]} 26. Kf2 {[%clk 0:02:37]}  Kf8 {[%clk 0:01:40]} 27. h3 {[%clk 0:02:23]}  Ke8 {[%clk 0:01:38]} 28. g4 {[%clk 0:02:24]}  hxg4 {[%clk 0:01:36]} 29. hxg4 {[%clk 0:02:25]}  g6 {[%clk 0:01:36]} 30. a4 {[%clk 0:02:09]}  Kd7 {[%clk 0:01:34]} 31. Ke2 {[%clk 0:02:09]}  Na7 {[%clk 0:01:28]} 32. Bd2 {[%clk 0:02:01]}  Kc6 {[%clk 0:01:27]} 33. Be3 {[%clk 0:01:56]}  b6 {[%clk 0:01:18]} 34. Kd3 {[%clk 0:01:53]}  Nc8 {[%clk 0:01:12]} 35. Bf2 {[%clk 0:01:53]}  Kb7 {[%clk 0:01:03]} 36. Nd2 {[%clk 0:01:43]}  Na7 {[%clk 0:00:59]} 37. Nf3 {[%clk 0:01:41]}  Nc6 {[%clk 0:00:59]} 38. Bh4 {[%clk 0:01:37]}  Bxh4 {[%clk 0:00:57]} 39. Nxh4 {[%clk 0:01:38]}  Kc7 {[%clk 0:00:54]} 40. Nf3 {[%clk 0:01:38]}  Kd7 {[%clk 0:00:54]} 41. Ng5 {[%clk 0:01:37]}  Nd8 {[%clk 0:00:43]} 42. Kd2 {[%clk 0:01:25]}  Ke7 {[%clk 0:00:39]} 43. a5 {[%clk 0:01:23]}  bxa5 {[%clk 0:00:38]} 44. Ne4 {[%clk 0:01:24]}  Nb7 {[%clk 0:00:37]} 45. Kc3 {[%clk 0:01:21]}  Kd7 {[%clk 0:00:37]} 46. Kb2 {[%clk 0:01:21]}  Kc6 {[%clk 0:00:37]} 47. Ng5 {[%clk 0:01:20]}  Nd8 {[%clk 0:00:37]} 48. Ka3 {[%clk 0:01:20]}  Kc7 {[%clk 0:00:34]} 49. Ka4 {[%clk 0:01:20]}  Kb6 {[%clk 0:00:34]} 50. Ka3 {[%clk 0:01:13]}  Kc7 {[%clk 0:00:32]} 51. Ne4 {[%clk 0:01:08]}  Kb6 {[%clk 0:00:32]} 52. Nd6 {[%clk 0:01:08]}  Kc7 {[%clk 0:00:21]} 53. Ka4 {[%clk 0:01:04]}  f5 {[%clk 0:00:21]} 54. g5 {[%clk 0:00:57]}  Nc6 {[%clk 0:00:21]} 55. Ne8+ {[%clk 0:00:43]}  Kd8 {[%clk 0:00:19]} 56. Nd6 {[%clk 0:00:43]}  Kc7 {[%clk 0:00:18]} 57. Nf7 {[%clk 0:00:41]}  Kb6 {[%clk 0:00:16]} 58. Nh8 {[%clk 0:00:38]}  Ne7 {[%clk 0:00:16]} 59. Ka3 {[%clk 0:00:38]}  Kc7 {[%clk 0:00:15]} 60. Nf7 {[%clk 0:00:38]}  Nc6 {[%clk 0:00:14]} 61. Nd6 {[%clk 0:00:38]}  Nd4 {[%clk 0:00:14]} 62. Ka4 {[%clk 0:00:34]}  Ne2 {[%clk 0:00:14]} 63. Kxa5 {[%clk 0:00:34]}  Nxf4 {[%clk 0:00:14]} 64. Kxa6 {[%clk 0:00:35]}  Nd3 {[%clk 0:00:14]} 65. Kb5 {[%clk 0:00:25]}  f4 {[%clk 0:00:13]} 66. Ne4 {[%clk 0:00:25]}  f3 {[%clk 0:00:13]} 67. Nd2 {[%clk 0:00:22]}  f2 {[%clk 0:00:13]} 68. Nf1 {[%clk 0:00:22]}  Kb7 {[%clk 0:00:09]} 69. Ne3 {[%clk 0:00:22]}  Kc7 {[%clk 0:00:09]} 70. Nf1 {[%clk 0:00:21]}  Kb7 {[%clk 0:00:08]} 71. Ng3 {[%clk 0:00:21]}  Kc7 {[%clk 0:00:07]} 72. Nf1 {[%clk 0:00:21]} 1/2-1/2


[Site "https://www.chess.com"]

[Event "Titled Tuesday Blitz January 11 2022"]
[White "Nesterov, Arseniy"]
[Black "Shkapenko, Pavel"]
[WhiteFideId "24198455"]
[BlackFideId "4151933"]
[WhiteElo "2489"]
[BlackElo "2386"]
[Result "1/2-1/2"]
[Round "11"]
[TimeControl "180+1"]
[Date "2022.01.11"]
[WhiteClock "0:00:10"]
[BlackClock "0:00:25"]

1. d4 {[%clk 0:03:00]}  Nf6 {[%clk 0:02:57]} 2. c4 {[%clk 0:03:01]}  e6 {[%clk 0:02:57]} 3. Nc3 {[%clk 0:03:00]}  Bb4 {[%clk 0:02:57]} 4. Qc2 {[%clk 0:03:01]}  c5 {[%clk 0:02:58]} 5. dxc5 {[%clk 0:03:00]}  Bxc5 {[%clk 0:02:58]} 6. Nf3 {[%clk 0:02:57]}  Qb6 {[%clk 0:02:46]} 7. e3 {[%clk 0:02:51]}  Qc7 {[%clk 0:02:46]} 8. a3 {[%clk 0:02:46]}  b6 {[%clk 0:02:31]} 9. Be2 {[%clk 0:02:37]}  Bb7 {[%clk 0:02:27]} 10. O-O {[%clk 0:02:37]}  a6 {[%clk 0:02:27]} 11. b4 {[%clk 0:02:35]}  Be7 {[%clk 0:02:26]} 12. e4 {[%clk 0:02:23]}  d6 {[%clk 0:02:21]} 13. Bf4 {[%clk 0:02:18]}  Nh5 {[%clk 0:02:09]} 14. Be3 {[%clk 0:02:14]}  Nd7 {[%clk 0:02:09]} 15. Rfd1 {[%clk 0:02:10]}  O-O {[%clk 0:02:05]} 16. h3 {[%clk 0:02:01]}  Rac8 {[%clk 0:02:04]} 17. Rac1 {[%clk 0:01:59]}  Rfd8 {[%clk 0:01:47]} 18. Qb3 {[%clk 0:01:32]}  Nhf6 {[%clk 0:01:46]} 19. Qb1 {[%clk 0:01:26]}  Qb8 {[%clk 0:01:43]} 20. Bf4 {[%clk 0:01:21]}  Ne5 {[%clk 0:01:32]} 21. Nxe5 {[%clk 0:01:16]}  dxe5 {[%clk 0:01:33]} 22. Be3 {[%clk 0:01:17]}  Ba8 {[%clk 0:01:33]} 23. f3 {[%clk 0:01:08]}  Nh5 {[%clk 0:01:30]} 24. Na4 {[%clk 0:00:47]}  Ng3 {[%clk 0:01:14]} 25. Bd3 {[%clk 0:00:46]}  Rd4 {[%clk 0:01:11]} 26. Bxd4 {[%clk 0:00:43]}  exd4 {[%clk 0:01:11]} 27. c5 {[%clk 0:00:42]}  Bg5 {[%clk 0:01:05]} 28. Re1 {[%clk 0:00:29]}  b5 {[%clk 0:00:57]} 29. Nb6 {[%clk 0:00:28]}  Rd8 {[%clk 0:00:54]} 30. a4 {[%clk 0:00:20]}  Be3+ {[%clk 0:00:52]} 31. Rxe3 {[%clk 0:00:20]}  dxe3 {[%clk 0:00:53]} 32. axb5 {[%clk 0:00:19]}  axb5 {[%clk 0:00:52]} 33. Bxb5 {[%clk 0:00:19]}  Rd2 {[%clk 0:00:46]} 34. Re1 {[%clk 0:00:14]}  Nh5 {[%clk 0:00:34]} 35. Rxe3 {[%clk 0:00:08]}  Qg3 {[%clk 0:00:32]} 36. Re2 {[%clk 0:00:06]}  Rxe2 {[%clk 0:00:32]} 37. Bxe2 {[%clk 0:00:07]}  Nf4 {[%clk 0:00:32]} 38. Bf1 {[%clk 0:00:08]}  Nxh3+ {[%clk 0:00:31]} 39. Kh1 {[%clk 0:00:08]}  Nf2+ {[%clk 0:00:23]} 40. Kg1 {[%clk 0:00:09]}  Nh3+ {[%clk 0:00:24]} 41. Kh1 {[%clk 0:00:09]}  Nf2+ {[%clk 0:00:24]} 42. Kg1 {[%clk 0:00:10]}  Nh3+ {[%clk 0:00:25]} 1/2-1/2


[Site "https://www.chess.com"]